fUST/lending_fUST_20250219
["ID","MTS","AMOUNT","RATE_DAILY","PERIOD"]
[353576171,1739928638082,-2414.8200761,0.00015133,2]
[353576172,1739928638092,-151.0,0.00015473,2]
[353576173,1739928638102,-151.0,0.000155,2]
[353576174,1739928638112,-308.130345,0.00015775,2]
[353576175,1739928638121,-7438.69753278,0.00015997,2]
[353576176,1739928638131,-676.241587,0.00016098,2]
[353576177,1739928638141,-587.0,0.00016134,2]
[353576178,1739928638151,-10000.0,0.000165,2]
[353576179,1739928638161,-500.0,0.00016904,2]
[353576180,1739928638171,-500.0,0.00017123,2]
[353576181,1739928638180,-500.0,0.00017123,2]
[353576182,1739928638190,-570.65,0.00017123,2]
[353576183,1739928638199,-500.0,0.00017123,2]
[353576184,1739928638209,-500.0,0.00017123,2]
[353576185,1739928638219,-500.0,0.00017123,2]
[353576186,1739928638228,-437.48454683,0.00017123,2]
[353576187,1739928638237,-502.58605344,0.00017123,2]
[353576188,1739928638247,-503.73787345,0.00017123,2]
[353576189,1739928638256,-501.20030978,0.00017123,2]
[353576190,1739928638266,-245.773186,0.00017123,2]
[353576191,1739928638275,-154.4229934,0.00017178,2]
[353576192,1739928638285,-214.1359259,0.00017178,2]
[353576193,1739928638296,-432.0001814,0.00017178,2]
[353576194,1739928638305,-309.4468904,0.00017178,2]
[353576195,1739928638315,-154.7234452,0.00017178,2]
[353576196,1739928638324,-216.0000907,0.00017178,2]
[353576197,1739928638335,-216.0000907,0.00017178,2]
[353576198,1739928638345,-266.4290689,0.00017178,2]
[353576199,1739928638355,-155.9770321,0.00017178,2]
[353576200,1739928638365,-500.0,0.00017205,2]
[353576201,1739928638374,-500.0,0.00017287,2]
[353576202,1739928638384,-500.0,0.00017369,2]
[353576203,1739928638394,-256.805,0.00017389,2]
[353576204,1739928638404,-179.83757439,0.00017389,2]
[353576205,1739928638413,-278.45315619,0.00017389,2]
[353576206,1739928638423,-500.0,0.00017389,2]
[353576207,1739928638432,-500.0,0.00017389,2]
[353576208,1739928638442,-150.0,0.00017389,2]
[353576209,1739928638451,-538.0,0.00017389,2]
[353576210,1739928638462,-1971.0,0.00017389,2]
[353576211,1739928638472,-2289.0,0.00017389,2]
[353576212,1739928638482,-2200.0,0.00017398,2]
[353576213,1739928638492,-500.0,0.00017451,2]
[353576214,1739928638501,-500.0,0.00017471,2]
[353576215,1739928638511,-500.0,0.00017471,2]
[353576216,1739928638521,-2051.7354074,0.000175,2]
[353576217,1739928638531,-500.0,0.00017553,2]
[353576218,1739928638541,-535.25,0.00017553,2]
[353576219,1739928638551,-500.0,0.00017601,2]
[353576220,1739928638560,-2000.0,0.00017603,30]
[353576221,1739928638569,-1369.799999,0.00017603,30]
[353576222,1739928638579,-2000.0,0.00017603,30]
[353576223,1739928638588,-2000.0,0.00017603,30]
[353576224,1739928638597,-843.599999,0.00017603,30]
[353576225,1739928638607,-2000.0,0.00017603,30]
[353576226,1739928638616,-2000.0,0.00017603,30]
[353576227,1739928638625,-843.599999,0.00017603,30]
[353576228,1739928638634,-2000.0,0.00017603,30]
[353576229,1739928638643,-2000.0,0.00017603,30]
[353576230,1739928638652,-843.599999,0.00017603,30]
[353576231,1739928638662,-182.50792402,0.00017608,2]
[353576232,1739928638672,-500.0,0.00017639,2]
[353576233,1739928638681,-500.0,0.00017639,2]
[353576234,1739928638693,-633.7252927,0.0001764,2]
[353576235,1739928638705,-679.0,0.00017686,2]
[353576236,1739928638714,-4520.42835264,0.000177,2]
[353576237,1739928638724,-2000.0,0.000178,2]
[353576238,1739928638735,-22621.08598677,0.0001782,2]
[353576239,1739928638745,-1432.8932925,0.0001785,2]
[353576240,1739928638755,-347.3337172,0.00017859,2]
[353576241,1739928638765,-3000.0,0.000179,2]
[353576242,1739928638776,-3000.0,0.000179,2]
[353576243,1739928638785,-3562.86037179,0.000179,2]
[353576244,1739928638796,-154.62946043,0.000179,2]
[353576245,1739928638806,-154.62946043,0.000179,2]
[353576246,1739928638815,-154.62946043,0.000179,2]
[353576247,1739928638825,-154.62946043,0.000179,2]
[353576248,1739928638835,-154.62946043,0.000179,2]
[353576249,1739928638845,-154.62946043,0.000179,2]
[353576250,1739928638854,-154.62946043,0.000179,2]
[353576251,1739928638864,-154.62946043,0.000179,2]
[353576252,1739928638873,-154.62946043,0.000179,2]
[353576253,1739928638881,-154.62946043,0.000179,2]
[353576254,1739928638890,-154.62946043,0.000179,2]
[353576255,1739928638899,-154.62946043,0.000179,2]
[353576256,1739928638908,-154.62946043,0.000179,2]
[353576257,1739928638917,-154.62946043,0.000179,2]
[353576258,1739928638928,-154.62946043,0.000179,2]
[353576259,1739928638937,-154.62946043,0.000179,2]
[353576260,1739928638946,-154.62,0.000179,2]
[353576261,1739928638955,-306.68176318,0.000179,2]
[353576262,1739928638964,-306.68176318,0.000179,2]
[353576263,1739928638973,-306.68176318,0.000179,2]
[353576264,1739928638983,-306.68176318,0.000179,2]
[353576265,1739928638993,-306.68176318,0.000179,2]
[353576266,1739928639002,-306.68176318,0.000179,2]
[353576267,1739928639011,-306.68176318,0.000179,2]
[353576268,1739928639021,-306.68176318,0.000179,2]
[353576269,1739928639030,-306.68176318,0.000179,2]
[353576270,1739928639038,-306.68176318,0.000179,2]
[353576271,1739928639049,-306.68176318,0.000179,2]
[353576272,1739928639058,-306.68176318,0.000179,2]
[353576273,1739928639067,-306.68176318,0.000179,2]
[353576274,1739928639083,-306.68176318,0.000179,2]
[353576275,1739928639093,-306.68176318,0.000179,2]
[353576276,1739928639102,-306.68176318,0.000179,2]
[353576277,1739928639111,-306.68176318,0.000179,2]
[353576278,1739928639121,-306.68176318,0.000179,2]
[353576279,1739928639130,-6271.1637908,0.000179,2]
[353576280,1739928639139,-306.68176318,0.000179,2]
[353576281,1739928639148,-306.68,0.000179,2]
[353576282,1739928639158,-193.55026735,0.000179,2]
[353576283,1739928639168,-193.55026735,0.000179,2]
[353576284,1739928639178,-193.55026735,0.000179,2]
[353576285,1739928639187,-193.55026735,0.000179,2]
[353576286,1739928639196,-193.55026735,0.000179,2]
[353576287,1739928639204,-193.55026735,0.000179,2]
[353576288,1739928639214,-193.55026735,0.000179,2]
[353576289,1739928639223,-193.55026735,0.000179,2]
[353576290,1739928639232,-193.55026735,0.000179,2]
[353576291,1739928639241,-193.55026735,0.000179,2]
[353576292,1739928639250,-193.55026735,0.000179,2]
[353576293,1739928639260,-193.55026735,0.000179,2]
[353576294,1739928639269,-193.55026735,0.000179,2]
[353576295,1739928639278,-193.55026735,0.000179,2]
[353576296,1739928639287,-193.55026735,0.000179,2]
[353576297,1739928639298,-193.55026735,0.000179,2]
[353576298,1739928639307,-163.18,0.000179,31]
[353576299,1739928639315,-163.18,0.000179,31]
[353576300,1739928639324,-193.55026735,0.000179,2]
[353576301,1739928639333,-163.18,0.000179,31]
[353576302,1739928639342,-163.18,0.000179,31]
[353576303,1739928639351,-163.18,0.000179,31]
[353576304,1739928639361,-193.55026735,0.000179,2]
[353576305,1739928639370,-163.18,0.000179,31]
[353576306,1739928639379,-163.18,0.000179,31]
[353576307,1739928639388,-193.55026735,0.000179,2]
[353576308,1739928639398,-193.55,0.000179,2]
[353576309,1739928639407,-451.61729048,0.000179,2]
[353576310,1739928639416,-451.61729048,0.000179,2]
[353576311,1739928639425,-451.61729048,0.000179,2]
[353576312,1739928639435,-451.61729048,0.000179,2]
[353576313,1739928639444,-451.61729048,0.000179,2]
[353576314,1739928639453,-451.61729048,0.000179,2]
[353576315,1739928639462,-451.61729048,0.000179,2]
[353576316,1739928639472,-451.61729048,0.000179,2]
[353576317,1739928639481,-451.61729048,0.000179,2]
[353576318,1739928639491,-451.61729048,0.000179,2]
[353576319,1739928639500,-451.61729048,0.000179,2]
[353576320,1739928639510,-451.61729048,0.000179,2]
[353576321,1739928639520,-451.61729048,0.000179,2]
[353576322,1739928639530,-451.61729048,0.000179,2]
[353576323,1739928639539,-451.61729048,0.000179,2]
[353576324,1739928639554,-451.61729048,0.000179,2]
[353576325,1739928639564,-451.61729048,0.000179,2]
[353576326,1739928639573,-451.61729048,0.000179,2]
[353576327,1739928639583,-451.61729048,0.000179,2]
[353576328,1739928639592,-451.61,0.000179,2]
[353576329,1739928639602,-340.0,0.0001794,2]
[353576330,1739928639611,-500.0,0.00017972,2]
[353576331,1739928639621,-500.0,0.00017973,2]
[353576332,1739928639630,-500.0,0.00017973,2]
[353576333,1739928639640,-275.15755177,0.00017973,2]
[353576334,1739928639649,-500.0,0.00017973,2]
[353576335,1739928639658,-500.11664919,0.00017973,2]
[353576336,1739928639667,-330.65426801,0.00017973,2]
[353576337,1739928639676,-500.37831187,0.00017973,2]
[353576338,1739928639685,-500.08793858,0.00017973,2]
[353576339,1739928639695,-500.0,0.00017973,2]
[353576340,1739928639705,-500.0,0.00017973,2]
[353576341,1739928639715,-163.30042292,0.00017973,2]
[353576342,1739928639725,-14407.357605,0.0001798,2]
[353576343,1739928639837,-7203.67880252,0.0001799,2]
[353576344,1739928639848,-500.0,0.00017999,2]
[353576345,1739928639857,-500.0,0.00017999,2]
[353576346,1739928639867,-500.0,0.00017999,2]
[353576347,1739928639876,-500.0,0.00017999,2]
[353576348,1739928639886,-500.0,0.00017999,2]
[353576349,1739928639896,-500.0,0.00017999,2]
[353576350,1739928639906,-500.0,0.00017999,2]
[353576351,1739928639916,-500.0,0.00017999,2]
[353576352,1739928639926,-500.0,0.00017999,2]
[353576353,1739928639935,-355.43,0.00017999,2]
[353576354,1739928639945,-160.0,0.00017999,2]
[353576355,1739928639955,-160.0,0.00017999,2]
[353576356,1739928639965,-398.40723623,0.00017999,2]
[353576357,1739928639975,-201.21457128,0.00017999,2]
[353576358,1739928639984,-160.0,0.00017999,2]
[353576359,1739928639994,-43238.39360475,0.00018,5]
[353576360,1739928640003,-6535.85405441,0.00018,5]
[353576361,1739928640013,-814150.63902142,0.00018,15]
[353576363,1739928640307,-3424619.67734184,0.00018,15]
[353576399,1739929121144,189.418322,0.00019,120]
[353576400,1739929244324,293.451001,9.041e-05,2]
[353576402,1739929401323,500.0,0.0001,7]
[353576403,1739929403066,500.0,0.0001,7]
[353576404,1739929403855,500.0,0.0001,7]
[353576405,1739929404719,500.0,0.0001,7]
[353576406,1739929405792,500.0,0.0001,7]
[353576407,1739929406689,500.0,0.0001,7]
[353576408,1739929412707,500.0,0.0001,7]
[353576409,1739929413702,500.0,0.0001,7]
[353576410,1739929426494,500.0,0.0001,7]
[353576411,1739929427358,500.0,0.0001,7]
[353576412,1739929428329,500.0,0.0001,7]
[353576413,1739929428967,500.0,0.0001,7]
[353576414,1739929429766,500.0,0.0001,7]
[353576415,1739929430520,500.0,0.0001,7]
[353576416,1739929443994,372.0,0.0001,7]
[353576417,1739929532151,-229.632399,0.0001264,2]
[353576418,1739929532172,-229.632399,0.00012768,2]
[353576419,1739929532192,-159.55569363,0.00013698,4]
[353576420,1739929532212,-387.97931674,0.00013698,2]
[353576421,1739929642090,-676.37862472,0.00013425,2]
[353576422,1739929643129,-329.08949825,0.00013425,2]
[353576423,1739929648127,-48.20587349,0.00013425,2]
[353576424,1739929648150,-9309.43732564,0.00013561,2]
[353576425,1739929648173,-134.67141926,0.00013698,2]
[353576426,1739929648194,-502.76177391,0.00013698,2]
[353576427,1739929648215,-505.15527731,0.00013698,2]
[353576428,1739929648236,-211.97372604,0.00013698,2]
[353576429,1739929651091,-289.28133415,0.00013698,2]
[353576430,1739929651112,-500.0,0.00013698,2]
[353576431,1739929651132,-504.9690969,0.00013698,2]
[353576432,1739929651154,-506.2768421,0.00013698,2]
[353576433,1739929651175,-445.68690983,0.00013698,2]
[353576434,1739929651195,-501.52709678,0.00013698,2]
[353576435,1739929651215,-501.02718166,0.00013698,2]
[353576436,1739929651235,-501.06363834,0.00013698,2]
[353576437,1739929651256,-500.88169017,0.00013698,2]
[353576438,1739929651277,-502.42974656,0.00013698,2]
[353576439,1739929651298,-501.66801828,0.00013698,2]
[353576440,1739929651318,-501.83553534,0.00013698,2]
[353576441,1739929651338,-502.78787082,0.00013698,2]
[353576442,1739929651359,-500.0,0.00013698,2]
[353576443,1739929651382,-158.85483796,0.00013698,2]
[353576444,1739929651404,-508.16326109,0.00013698,2]
[353576445,1739929651425,-500.34561516,0.00013698,2]
[353576446,1739929651445,-183.21942364,0.00013698,2]
[353576447,1739929651466,-244.38489547,0.00013698,2]
[353576453,1739929745103,-1011.33932085,0.00013561,2]
[353576454,1739929753111,-624.58601354,0.00013561,2]
[353576455,1739929753131,-257.04340586,0.00013698,2]
[353576456,1739929753150,-500.23769721,0.00013698,2]
[353576457,1739929753170,-502.80207712,0.00013698,2]
[353576458,1739929753190,-502.68368155,0.00013698,2]
[353576459,1739929753210,-1875.17,0.00013698,2]
[353576460,1739929753231,-557.56068641,0.00013698,2]
[353576461,1739929753252,-503.98778979,0.00013698,2]
[353576462,1739929753273,-500.0,0.00013698,2]
[353576463,1739929753292,-500.19828342,0.00013698,2]
[353576464,1739929753311,-326.51155907,0.00013698,2]
[353576465,1739929753331,-502.89002927,0.00013698,2]
[353576466,1739929753351,-501.78719274,0.00013698,2]
[353576467,1739929753372,-501.87859343,0.00013698,2]
[353576468,1739929753391,-229.632399,0.00013699,2]
[353576469,1739929753411,-150.0,0.00013699,2]
[353576470,1739929753431,-510.41917963,0.0001378,2]
[353576471,1739929753450,-501.42593789,0.0001378,2]
[353576472,1739929753469,-1875.17,0.0001378,2]
[353576473,1739929753489,-501.29186412,0.0001378,2]
[353576474,1739929753508,-1875.17,0.00013863,2]
[353576475,1739929753528,-1875.17,0.00013945,2]
[353576476,1739929753549,-1032.81624102,0.00013998,2]
[353576477,1739929753572,-1032.81624102,0.00013998,2]
[353576478,1739929753592,-155.544565,0.00013999,2]
[353576479,1739929762102,-346.67045361,0.00013999,2]
[353576480,1739929762125,-502.97476327,0.00013999,2]
[353576481,1739929762146,-500.49479312,0.00013999,2]
[353576482,1739929762168,-502.97796487,0.00013999,2]
[353576483,1739929762189,-505.47745752,0.00013999,2]
[353576484,1739929762210,-288.17082031,0.00013999,2]
[353576485,1739929762231,-502.87441738,0.00013999,2]
[353576486,1739929762253,-500.83208442,0.00013999,2]
[353576487,1739929762273,-503.37252406,0.00013999,2]
[353576488,1739929762294,-1032.81624102,0.00014,2]
[353576489,1739929762315,-1875.17,0.00014027,2]
[353576490,1739929762336,-1875.17,0.00014109,2]
[353576491,1739929762356,-152.0,0.00014133,2]
[353576492,1739929762377,-500.0,0.00014164,2]
[353576493,1739929762397,-1875.17,0.00014191,2]
[353576494,1739929762419,-150.11648072,0.00014247,2]
[353576495,1739929762442,-167.07184942,0.00014256,2]
[353576496,1739929762463,-1875.17,0.00014273,2]
[353576497,1739929762486,-1875.17,0.00014356,2]
[353576498,1739929762509,-161.35126981,0.00014359,2]
[353576499,1739929762531,-500.0,0.00014359,2]
[353576500,1739929762553,-514.94015931,0.00014359,2]
[353576501,1739929762574,-505.7234022,0.00014359,2]
[353576502,1739929762596,-506.06009748,0.00014359,2]
[353576503,1739929762618,-500.0,0.00014359,2]
[353576504,1739929762642,-500.0,0.00014359,2]
[353576505,1739929762663,-536.98074185,0.00014359,2]
[353576506,1739929762685,-690.67,0.00014359,2]
[353576507,1739929762707,-508.63987979,0.00014359,2]
[353576508,1739929762729,-506.05429969,0.00014359,2]
[353576509,1739929762751,-501.78106234,0.00014359,2]
[353576510,1739929762774,-500.808205,0.00014359,2]
[353576511,1739929762796,-500.0,0.00014359,2]
[353576512,1739929762818,-507.03713413,0.00014359,2]
[353576513,1739929762839,-508.24218974,0.00014359,2]
[353576514,1739929762862,-537.89,0.00014359,2]
[353576515,1739929762883,-503.65355636,0.00014359,2]
[353576516,1739929762905,-511.62677832,0.00014359,2]
[353576517,1739929762929,-500.0,0.00014359,2]
[353576518,1739929762952,-504.71305719,0.00014359,2]
[353576519,1739929762975,-501.84276529,0.00014359,2]
[353576520,1739929762999,-502.22896325,0.00014359,2]
[353576521,1739929763021,-508.48037484,0.00014359,2]
[353576522,1739929763044,-503.30253068,0.00014359,2]
[353576523,1739929763066,-513.70681468,0.00014359,2]
[353576524,1739929763087,-505.58710241,0.00014359,2]
[353576525,1739929763108,-501.49388745,0.00014359,2]
[353576526,1739929763129,-500.0,0.00014359,2]
[353576527,1739929763149,-501.99398181,0.00014359,2]
[353576528,1739929763170,-531.73676868,0.00014359,2]
[353576529,1739929763191,-7438.69753278,0.00014359,2]
[353576530,1739929763213,-1875.17,0.00014438,2]
[353576531,1739929763239,-308.51858372,0.00014441,2]
[353576532,1739929763262,-500.0,0.00014441,2]
[353576533,1739929763399,-578.84449711,0.00014441,2]
[353576534,1739929763424,-537.89,0.00014441,2]
[353576535,1739929763447,-168.94000544,0.00014441,2]
[353576537,1739929763468,-506.13491342,0.00014441,2]
[353576538,1739929763489,-1875.17,0.0001452,2]
[353576539,1739929763512,-500.0,0.00014523,2]
[353576540,1739929763536,-537.89,0.00014523,2]
[353576541,1739929763558,-1875.17,0.00014602,2]
[353576542,1739929763580,-369.30672303,0.00014605,2]
[353576543,1739929763602,-537.89,0.00014605,2]
[353576544,1739929763624,-1875.17,0.00014684,2]
[353576545,1739929763647,-537.89,0.00014687,2]
[353576546,1739929763668,-1875.17,0.00014767,2]
[353576547,1739929763691,-537.89,0.0001477,2]
[353576548,1739929763714,-1875.17,0.00014849,2]
[353576549,1739929763737,-537.89,0.00014852,2]
[353576550,1739929763759,-1875.17,0.00014931,2]
[353576551,1739929763781,-270.004,0.00014934,2]
[353576552,1739929763804,-537.89,0.00014934,2]
[353576553,1739929763825,-339.069565,0.00014934,2]
[353576554,1739929763848,-1875.17,0.00015013,2]
[353576555,1739929763872,-537.89,0.00015016,2]
[353576556,1739929763892,-1875.17,0.00015095,2]
[353576557,1739929763916,-537.89,0.00015098,2]
[353576558,1739929763938,-690.67,0.00015131,2]
[353576559,1739929763960,-502.75489594,0.00015132,2]
[353576560,1739929763981,-500.0,0.00015132,2]
[353576561,1739929764003,-503.6061895,0.00015132,2]
[353576562,1739929764027,-502.14193036,0.00015132,2]
[353576563,1739929764047,-329.98863693,0.00015132,2]
[353576564,1739929764069,-504.49748366,0.00015132,2]
[353576565,1739929764088,-500.320337,0.00015132,2]
[353576566,1739929764112,-507.44545293,0.00015132,2]
[353576567,1739929764132,-503.54031162,0.00015132,2]
[353576568,1739929764153,-501.60996562,0.00015132,2]
[353576569,1739929764174,-500.0,0.00015132,2]
[353576570,1739929764198,-502.27021404,0.00015132,2]
[353576571,1739929764219,-502.70698347,0.00015132,2]
[353576572,1739929764241,-501.61000431,0.00015132,2]
[353576573,1739929764261,-500.50190578,0.00015132,2]
[353576574,1739929764281,-501.31283253,0.00015132,2]
[353576575,1739929764301,-502.79546394,0.00015132,2]
[353576576,1739929764321,-1875.17,0.00015178,2]
[353576577,1739929764344,-537.89,0.00015181,2]
[353576578,1739929764365,-503.846676,0.00015215,2]
[353576579,1739929764386,-503.7363813,0.00015215,2]
[353576580,1739929764407,-1875.17,0.0001526,2]
[353576581,1739929764429,-537.89,0.00015263,2]
[353576582,1739929764450,-183.07074389,0.00015342,2]
[353576590,1739929832141,-504.49843375,0.00013698,2]
[353576591,1739929832151,-501.65373717,0.00013698,2]
[353576592,1739929832163,-500.0,0.00013998,2]
[353576593,1739929832173,-501.91421913,0.00013999,2]
[353576594,1739929832183,-132.5447674,0.00013999,2]
[353576595,1739929832195,-374.46111137,0.00013999,2]
[353576596,1739929832205,-510.01027285,0.0001408,2]
[353576597,1739929832214,-500.0,0.00014164,2]
[353576598,1739929832224,-620.362507,0.0001431,2]
[353576599,1739929832234,-500.0,0.00014359,2]
[353576600,1739929832244,-382.43284365,0.00014359,2]
[353576621,1739929837935,-500.0,0.00013998,2]
[353576622,1739929838089,-500.0,0.0001408,2]
[353576623,1739929838099,-305.8,0.00014163,2]
[353576624,1739929838108,-135.6207714,0.00014359,2]
[353576625,1739929838118,-500.0,0.00014359,2]
[353576626,1739929838128,-505.60518788,0.00014359,2]
[353576627,1739929838138,-500.0,0.00014441,2]
[353576628,1739929838148,-500.0,0.00014523,2]
[353576629,1739929838158,-500.0,0.00014605,2]
[353576630,1739929838168,-500.0,0.00014687,2]
[353576631,1739929838177,-500.0,0.0001477,2]
[353576632,1739929838187,-52.97404012,0.00014852,2]
[353576633,1739929838199,-447.02595988,0.00014852,2]
[353576634,1739929838209,-500.0,0.00014934,2]
[353576635,1739929838219,-500.0,0.00015016,2]
[353576636,1739929838229,-477.65835828,0.00015098,2]
[353576637,1739929838240,-1692.09925611,0.00015342,2]
[353576638,1739929838249,-537.89,0.00015345,2]
[353576639,1739929838259,-1875.17,0.00015424,2]
[353576640,1739929838268,-537.89,0.00015427,2]
[353576641,1739929838277,-167.07184939,0.00015471,2]
[353576642,1739929838287,-151.0,0.00015473,2]
[353576643,1739929838296,-1875.17,0.00015506,2]
[353576644,1739929838307,-537.89,0.00015509,2]
[353576645,1739929838317,-1007.8268122,0.00015531,2]
[353576646,1739929838327,-1875.22611396,0.00015589,2]
[353576647,1739929838336,-537.89,0.00015592,2]
[353576648,1739929838345,-537.89,0.00015674,2]
[353576649,1739929838354,-537.89,0.00015756,2]
[353576650,1739929838363,-293.451001,0.00015775,2]
[353576651,1739929838373,-537.89,0.00015838,2]
[353576652,1739929838382,-537.89,0.0001592,2]
[353576653,1739929838391,-537.89,0.00016003,2]
[353576654,1739929838401,-358.3130743,0.00016082,2]
[353576655,1739929838410,-355.1269712,0.00016082,2]
[353576656,1739929838420,-355.1269712,0.00016082,2]
[353576657,1739929838429,-355.1269712,0.00016082,2]
[353576658,1739929838438,-355.1269712,0.00016082,2]
[353576659,1739929838448,-355.1269712,0.00016082,2]
[353576660,1739929838457,-537.89,0.00016085,2]
[353576661,1739929838466,-537.89,0.00016167,2]
[353576662,1739929838475,-19172.2123096,0.0001619,2]
[353576663,1739929838485,-500.0,0.00016198,2]
[353576664,1739929838495,-500.0,0.00016199,2]
[353576665,1739929838504,-500.0,0.00016199,2]
[353576666,1739929838514,-500.0,0.00016199,2]
[353576667,1739929838523,-690.67,0.00016199,2]
[353576668,1739929838532,-690.67,0.00016199,2]
[353576669,1739929838541,-300.0,0.000162,6]
[353576670,1739929838550,-12892.12822003,0.000162,2]
[353576671,1739929838560,-12892.12822,0.000162,2]
[353576672,1739929838570,-12892.12822,0.000162,2]
[353576673,1739929838578,-538.0043929,0.00016249,2]
[353576674,1739929838587,-500.0,0.00016281,2]
[353576675,1739929838597,-294.54756481,0.00016281,2]
[353576676,1739929838606,-506.73026402,0.00016281,2]
[353576677,1739929838615,-154.7234452,0.00016356,2]
[353576678,1739929838624,-432.0001814,0.00016356,2]
[353576679,1739929838633,-216.0000907,0.00016356,2]
[353576680,1739929838642,-154.7234452,0.00016356,2]
[353576681,1739929838651,-153.0,0.00016356,2]
[353576682,1739929838661,-310.1332672,0.00016356,2]
[353576683,1739929838670,-500.0,0.00016364,2]
[353576684,1739929838679,-500.0,0.00016446,2]
[353576685,1739929838688,-2710.7,0.000165,2]
[353576686,1739929838697,-500.0,0.00016528,2]
[353576687,1739929838706,-500.0,0.0001661,2]
[353576688,1739929838716,-167.07184939,0.00016685,2]
[353576689,1739929838725,-500.0,0.00016692,2]
[353576690,1739929838734,-500.0,0.00016775,2]
[353576691,1739929838743,-19172.2123096,0.00016814,2]
[353576692,1739929838752,-12892.12822,0.00016825,2]
[353576693,1739929838761,-500.0,0.00016857,2]
[353576694,1739929838770,-153.0,0.00016878,2]
[353576695,1739929838779,-154.7234452,0.00016878,2]
[353576696,1739929838788,-500.0,0.00016904,2]
[353576697,1739929838797,-500.0,0.00016939,2]
[353576698,1739929838807,-500.0,0.00017021,2]
[353576699,1739929838816,-355.1269712,0.00017041,2]
[353576700,1739929838825,-500.0,0.00017103,2]
[353576701,1739929838834,-690.67,0.00017122,2]
[353576702,1739929838844,-402.71899617,0.00017122,2]
[353576703,1739929838853,-504.93493338,0.00017123,2]
[353576704,1739929838863,-502.15224562,0.00017123,2]
[353576705,1739929838872,-502.26184712,0.00017123,2]
[353576706,1739929838881,-503.4800526,0.00017123,2]
[353576707,1739929838891,-501.97056596,0.00017123,2]
[353576708,1739929838900,-503.62032722,0.00017123,2]
[353576709,1739929838909,-508.92952836,0.00017123,2]
[353576710,1739929838919,-502.34451785,0.00017123,2]
[353576711,1739929838928,-500.33758759,0.00017123,2]
[353576712,1739929838938,-502.65826185,0.00017123,2]
[353576713,1739929838947,-503.24247075,0.00017123,2]
[353576714,1739929838956,-505.71849357,0.00017123,2]
[353576715,1739929838965,-229.632399,0.00017123,2]
[353576716,1739929838974,-153.380625,0.00017152,2]
[353576717,1739929838983,-500.0,0.00017186,2]
[353576718,1739929838992,-500.0,0.00017268,2]
[353576719,1739929839001,-500.0,0.0001735,2]
[353576720,1739929839011,-500.0,0.00017432,2]
[353576721,1739929839020,-574.90016819,0.00017514,2]
[353576722,1739929839029,-500.0,0.00017595,2]
[353576723,1739929839039,-690.67,0.00017596,2]
[353576724,1739929839054,-2000.0,0.00017597,30]
[353576725,1739929839063,-2000.0,0.00017597,30]
[353576726,1739929839072,-2000.0,0.00017597,30]
[353576727,1739929839083,-844.2,0.00017597,30]
[353576728,1739929839092,-2000.0,0.00017597,30]
[353576729,1739929839102,-2000.0,0.00017597,30]
[353576730,1739929839111,-844.2,0.00017597,30]
[353576731,1739929839120,-2000.0,0.00017597,30]
[353576732,1739929839130,-2000.0,0.00017597,30]
[353576733,1739929839139,-844.2,0.00017597,30]
[353576734,1739929839148,-2000.0,0.00017597,30]
[353576735,1739929839158,-844.2,0.00017597,30]
[353576736,1739929839168,-500.0,0.00017597,5]
[353576737,1739929839187,-503.82260939,0.00017597,5]
[353576738,1739929839197,-2200.0,0.00017617,2]
[353576739,1739929839207,-504.04340888,0.00017639,2]
[353576740,1739929839217,-500.34220366,0.00017639,2]